[Event "Pobeskydi 2026"]
[Site "Frydek-Mistek, Czech Republic"]
[Date "2026.04.04"]
[Round "5.7"]
[White "Durana, Jonas"]
[Black "Kovacik, Oliver"]
[Result "1-0"]
[TimeControl "90 min+30s/move"]
[WhiteTitle "-"]
[BlackTitle "-"]
[WhiteFideId "73619663"]
[BlackFideId "2321963"]
[WhiteElo "2183"]
[BlackElo "1969"]

1. e4 {[%clk 01:30:54]} {[%emt 00:00:06]} c6 {[%clk 01:30:54]} {[%emt
00:00:07]} 2. d4 {[%clk 01:31:18]} {[%emt 00:00:04]} d5 {[%clk 01:31:18]}
{[%emt 00:00:06]} 3. e5 {[%clk 01:31:44]} {[%emt 00:00:04]} Bf5 {[%clk
01:31:41]} {[%emt 00:00:08]} 4. Nd2 {[%clk 01:32:07]} {[%emt 00:00:07]} e6
{[%clk 01:32:05]} {[%emt 00:00:06]} 5. Nb3 {[%clk 01:32:29]} {[%emt 00:00:08]}
c5 {[%clk 01:31:13]} {[%emt 00:01:23]} 6. dxc5 {[%clk 01:31:22]} {[%emt
00:01:36]} Bxc5 {[%clk 01:30:21]} {[%emt 00:01:22]} 7. Nxc5 {[%clk 01:31:47]}
{[%emt 00:00:04]} Qa5+ {[%clk 01:30:47]} {[%emt 00:00:05]} 8. c3 {[%clk
01:32:06]} {[%emt 00:00:11]} Qxc5 {[%clk 01:31:08]} {[%emt 00:00:09]} 9. Be3
{[%clk 01:32:30]} {[%emt 00:00:05]} Qc7 {[%clk 01:31:20]} {[%emt 00:00:19]} 10.
f4 {[%clk 01:32:56]} {[%emt 00:00:04]} Nc6 {[%clk 01:30:56]} {[%emt 00:00:54]}
11. Nf3 {[%clk 01:32:16]} {[%emt 00:01:09]} Nge7 {[%clk 01:28:44]} {[%emt
00:02:43]} 12. Be2 {[%clk 01:30:28]} {[%emt 00:02:17]} h6 {[%clk 01:20:49]}
{[%emt 00:08:26]} 13. O-O {[%clk 01:24:50]} {[%emt 00:06:08]} O-O {[%clk
01:19:33]} {[%emt 00:01:46]} 14. Qa4 {[%clk 01:15:16]} {[%emt 00:10:05]} Rac8
{[%clk 01:16:25]} {[%emt 00:03:38]} 15. Rac1 {[%clk 01:15:12]} {[%emt
00:00:34]} a6 {[%clk 01:14:51]} {[%emt 00:02:04]} 16. Nd4 {[%clk 01:04:11]}
{[%emt 00:11:29]} Nxd4 {[%clk 01:13:00]} {[%emt 00:02:23]} 17. Bxd4 {[%clk
01:04:06]} {[%emt 00:00:34]} Nc6 {[%clk 01:12:03]} {[%emt 00:01:28]} 18. Be3
{[%clk 01:01:53]} {[%emt 00:02:41]} Qa5 {[%clk 01:08:17]} {[%emt 00:04:18]} 19.
Qb3 {[%clk 00:48:52]} {[%emt 00:13:30]} b5 {[%clk 01:07:30]} {[%emt 00:01:18]}
20. Rfd1 {[%clk 00:38:07]} {[%emt 00:11:14]} Rfd8 {[%clk 01:02:32]} {[%emt
00:05:29]} 21. Bd4 {[%clk 00:34:42]} {[%emt 00:03:55]} Be4 {[%clk 00:57:01]}
{[%emt 00:06:00]} 22. h3 {[%clk 00:34:24]} {[%emt 00:00:47]} Nxd4 {[%clk
00:56:35]} {[%emt 00:00:57]} 23. Rxd4 {[%clk 00:34:36]} {[%emt 00:00:18]} Qb6
{[%clk 00:56:25]} {[%emt 00:00:41]} 24. Rf1 {[%clk 00:28:06]} {[%emt 00:06:55]}
Rc4 {[%clk 00:50:48]} {[%emt 00:06:10]} 25. Bxc4 {[%clk 00:22:13]} {[%emt
00:06:23]} dxc4 {[%clk 00:51:14]} {[%emt 00:00:05]} 26. Qd1 {[%clk 00:22:38]}
{[%emt 00:00:04]} Bd3 {[%clk 00:51:39]} {[%emt 00:00:05]} 27. Rf2 {[%clk
00:23:01]} {[%emt 00:00:07]} Rxd4 {[%clk 00:52:06]} {[%emt 00:00:04]} 28. cxd4
Qxd4 {[%clk 00:52:25]} 29. Qf3 {[%clk 00:19:45]} {[%emt 00:04:08]} Be4 {[%clk
00:47:56]} {[%emt 00:05:00]} 30. Qc3 {[%clk 00:17:29]} {[%emt 00:02:36]} Qc5
{[%emt 00:02:51]} 31. a3 {[%clk 00:16:40]} {[%emt 00:01:00]} Bd3 {[%clk
00:42:25]} {[%emt 00:04:00]} 32. Qd2 {[%clk 00:16:36]} {[%emt 00:00:41]} Qd4
{[%clk 00:42:09]} {[%emt 00:00:46]} 33. Kh2 {[%clk 00:15:07]} {[%emt 00:01:58]}
h5 {[%clk 00:41:18]} {[%emt 00:01:22]} 34. Rf1 {[%clk 00:13:40]} {[%emt
00:01:53]} a5 {[%clk 00:35:40]} {[%emt 00:06:14]} 35. Rd1 {[%clk 00:11:47]}
{[%emt 00:02:15]} g6 {[%clk 00:34:45]} {[%emt 00:01:31]} 36. Kh1 {[%clk
00:09:39]} {[%emt 00:02:37]} Kg7 {[%clk 00:33:57]} {[%emt 00:01:19]} 37. Re1
{[%clk 00:07:27]} {[%emt 00:02:42]} b4 {[%clk 00:32:43]} {[%emt 00:01:45]} 38.
axb4 {[%clk 00:07:38]} {[%emt 00:00:20]} axb4 {[%clk 00:33:11]} {[%emt
00:00:01]} 39. Qxb4 {[%clk 00:07:39]} {[%emt 00:00:28]} Qxf4 {[%clk 00:33:37]}
{[%emt 00:00:05]} 40. Qc3 {[%clk 00:05:36]} {[%emt 00:02:33]} Qf2 {[%clk
00:28:05]} {[%emt 00:06:01]} 41. Rd1 {[%clk 00:05:14]} {[%emt 00:00:52]} Be4
{[%clk 00:25:42]} {[%emt 00:02:54]} 42. Rd2 {[%clk 00:04:40]} {[%emt 00:01:01]}
Qf1+ {[%clk 00:25:45]} {[%emt 00:00:29]} 43. Kh2 {[%clk 00:05:07]} {[%emt
00:00:04]} Qf4+ {[%clk 00:25:11]} {[%emt 00:01:04]} 44. Kg1 {[%clk 00:05:29]}
{[%emt 00:00:07]} Bd3 {[%clk 00:23:25]} {[%emt 00:02:17]} 45. Rd1 {[%clk
00:03:43]} {[%emt 00:02:07]} Qe3+ {[%clk 00:21:35]} {[%emt 00:02:28]} 46. Kh1
{[%clk 00:04:01]} {[%emt 00:00:10]} Qf2 {[%clk 00:21:46]} {[%emt 00:00:20]} 47.
Qd2 {[%clk 00:03:53]} {[%emt 00:00:38]} Qxd2 {[%clk 00:19:33]} {[%emt
00:02:45]} 48. Rxd2 {[%clk 00:04:08]} {[%emt 00:00:15]} Be4 {[%clk 00:19:46]}
{[%emt 00:00:17]} 49. Rf2 {[%clk 00:03:40]} {[%emt 00:00:57]} g5 {[%clk
00:17:40]} {[%emt 00:02:37]} 50. h4 {[%clk 00:03:55]} {[%emt 00:00:14]} Bf5
{[%clk 00:17:15]} {[%emt 00:00:56]} 51. hxg5 {[%clk 00:04:13]} Kg6 {[%clk
00:17:15]} 52. Rf4 Bd3 {[%clk 00:17:15]} 53. Kh2 {[%clk 00:04:13]} Kxg5 {[%clk
00:17:15]} 54. Rxf7 {[%clk 00:04:13]} Kg4 {[%clk 00:17:15]} 55. Rf2 {[%clk
00:04:13]} Be4 {[%clk 00:17:15]} 56. g3 {[%clk 00:04:13]} Bd3 {[%clk 00:17:15]}
57. Rf4+ {[%clk 00:04:13]} Kg5 {[%clk 00:17:15]} 58. Kg2 {[%clk 00:04:13]} h4
{[%clk 00:17:15]} 59. Rxh4 {[%clk 00:04:13]} Kf5 {[%clk 00:17:15]} 60. Kf3
{[%clk 00:04:13]} Kxe5 {[%clk 00:17:15]} 61. Rf4 {[%clk 00:04:13]} Kd5 {[%clk
00:17:15]} 62. Ke3 {[%clk 00:04:13]} Kc5 {[%clk 00:17:15]} 63. g4 {[%clk
00:04:13]} Kb4 {[%clk 00:17:15]} 64. Kd2 {[%clk 00:04:13]} Kb3 {[%clk
00:17:15]} 65. Rf3 {[%clk 00:04:13]} 1-0

[Event "Pobeskydi 2026"]
[Site "Frydek-Mistek, Czech Republic"]
[Date "2026.04.04"]
[Round "5.8"]
[White "Sarkozi, Szabolcs"]
[Black "Lee, Yuk Hei"]
[Result "1/2-1/2"]
[TimeControl "90 min+30s/move"]
[WhiteTitle "-"]
[BlackTitle "-"]
[WhiteFideId "14941660"]
[BlackFideId "343411061"]
[WhiteElo "2117"]
[BlackElo "1960"]

1. e4 {[%clk 01:30:22]} {[%emt 00:00:32]} c6 {[%clk 01:30:51]} {[%emt
00:00:15]} 2. d4 {[%clk 01:30:32]} {[%emt 00:00:20]} d5 {[%clk 01:31:17]}
{[%emt 00:00:06]} 3. e5 {[%clk 01:30:54]} {[%emt 00:00:07]} c5 {[%clk
01:31:39]} {[%emt 00:00:07]} 4. dxc5 {[%clk 01:31:15]} {[%emt 00:00:09]} e6
{[%clk 01:32:01]} {[%emt 00:00:09]} 5. Be3 {[%clk 01:30:27]} {[%emt 00:01:17]}
Nd7 {[%clk 01:31:48]} {[%emt 00:00:43]} 6. Nc3 {[%clk 01:22:53]} {[%emt
00:08:05]} Bxc5 {[%clk 01:26:52]} {[%emt 00:05:26]} 7. Bxc5 {[%clk 01:23:04]}
{[%emt 00:00:19]} Nxc5 {[%clk 01:27:15]} {[%emt 00:00:07]} 8. Qg4 {[%clk
01:23:24]} {[%emt 00:00:08]} Kf8 {[%clk 01:18:28]} {[%emt 00:09:18]} 9. O-O-O
{[%clk 01:18:45]} {[%emt 00:05:09]} Ne7 {[%clk 01:15:40]} {[%emt 00:03:19]} 10.
Nf3 {[%clk 01:15:03]} {[%emt 00:04:12]} Bd7 {[%clk 01:09:18]} {[%emt 00:06:52]}
11. h4 {[%clk 01:07:55]} {[%emt 00:07:37]} h5 {[%clk 00:55:29]} {[%emt
00:14:19]} 12. Qf4 {[%clk 00:56:35]} {[%emt 00:11:49]} Rc8 {[%clk 00:48:00]}
{[%emt 00:08:01]} 13. Nd4 {[%clk 00:44:12]} {[%emt 00:12:52]} Qc7 {[%clk
00:43:33]} {[%emt 00:04:56]} 14. Qe3 {[%clk 00:42:51]} {[%emt 00:01:51]} a6
{[%clk 00:37:33]} {[%emt 00:06:32]} 15. f4 {[%clk 00:35:18]} {[%emt 00:08:02]}
b5 {[%clk 00:32:35]} {[%emt 00:05:29]} 16. Bd3 {[%clk 00:20:31]} {[%emt
00:15:16]} b4 {[%clk 00:26:56]} {[%emt 00:06:09]} 17. Nce2 {[%clk 00:20:58]}
{[%emt 00:00:02]} a5 {[%clk 00:23:45]} {[%emt 00:03:42]} 18. Kb1 {[%clk
00:19:18]} {[%emt 00:02:10]} a4 {[%clk 00:22:36]} {[%emt 00:01:39]} 19. Rc1
{[%clk 00:18:11]} {[%emt 00:01:37]} Qb6 {[%clk 00:20:19]} {[%emt 00:02:47]} 20.
g4 {[%clk 00:12:52]} {[%emt 00:05:49]} hxg4 {[%clk 00:14:59]} {[%emt 00:05:50]}
21. h5 {[%clk 00:13:11]} {[%emt 00:00:11]} Nxd3 {[%clk 00:12:10]} {[%emt
00:03:19]} 22. Qxd3 {[%clk 00:11:12]} {[%emt 00:02:29]} Nc6 {[%clk 00:10:53]}
{[%emt 00:01:47]} 23. Nxc6 {[%clk 00:10:38]} {[%emt 00:01:04]} Rxc6 {[%clk
00:10:35]} {[%emt 00:00:48]} 24. Qg3 {[%clk 00:07:12]} {[%emt 00:03:56]} Qc5
{[%clk 00:08:31]} {[%emt 00:02:34]} 25. Qxg4 {[%clk 00:06:49]} {[%emt
00:00:53]} a3 {[%clk 00:05:45]} {[%emt 00:03:16]} 26. Rhg1 {[%clk 00:05:03]}
{[%emt 00:02:15]} Rh7 {[%clk 00:05:49]} {[%emt 00:00:26]} 27. b3 {[%clk
00:03:39]} {[%emt 00:01:54]} d4 {[%clk 00:03:53]} {[%emt 00:02:26]} 28. Rgd1
{[%clk 00:02:55]} {[%emt 00:01:15]} g6 {[%clk 00:02:54]} {[%emt 00:01:29]} 29.
hxg6 {[%clk 00:02:15]} {[%emt 00:01:10]} Rg7 {[%clk 00:03:06]} {[%emt
00:00:17]} 30. Qh4 {[%clk 00:02:09]} {[%emt 00:00:36]} Rxg6 {[%clk 00:03:20]}
{[%emt 00:00:17]} 31. Rxd4 {[%clk 00:01:57]} {[%emt 00:00:41]} Ke8 {[%clk
00:02:39]} {[%emt 00:01:11]} 32. Qh8+ {[%clk 00:01:23]} {[%emt 00:01:04]} Ke7
{[%clk 00:03:04]} {[%emt 00:00:04]} 33. Qh4+ {[%clk 00:01:51]} {[%emt
00:00:03]} Ke8 {[%clk 00:03:30]} {[%emt 00:00:04]} 34. Rxd7 {[%clk 00:00:41]}
{[%emt 00:01:40]} Kxd7 {[%clk 00:03:34]} {[%emt 00:00:26]} 35. Rd1+ {[%clk
00:01:09]} {[%emt 00:00:02]} Kc7 {[%clk 00:03:02]} {[%emt 00:01:02]} 36. Qd8+
{[%clk 00:01:34]} {[%emt 00:00:04]} Kb7 {[%clk 00:03:30]} {[%emt 00:00:03]} 37.
Rd7+ {[%clk 00:00:53]} {[%emt 00:01:12]} Rc7 {[%clk 00:03:35]} {[%emt
00:00:24]} 38. Rxc7+ {[%clk 00:00:39]} {[%emt 00:00:43]} Qxc7 {[%clk 00:03:58]}
{[%emt 00:00:08]} 39. Qf8 {[%clk 00:00:32]} {[%emt 00:00:37]} Rg2 {[%clk
00:02:57]} {[%emt 00:01:30]} 40. Qxb4+ {[%clk 00:00:49]} {[%emt 00:00:13]} Qb6
{[%clk 00:03:08]} {[%emt 00:00:20]} 41. Qe7+ {[%clk 00:01:02]} {[%emt
00:00:17]} Kc8 {[%clk 00:03:10]} {[%emt 00:00:27]} 42. Qe8+ {[%clk 00:00:50]}
{[%emt 00:00:43]} Kb7 {[%clk 00:03:14]} {[%emt 00:00:26]} 43. Qd7+ {[%clk
00:01:03]} {[%emt 00:00:15]} Kb8 {[%clk 00:02:41]} {[%emt 00:01:05]} 44. Qe8+
{[%clk 00:01:12]} {[%emt 00:00:20]} Ka7 {[%clk 00:02:56]} {[%emt 00:00:16]} 45.
Qe7+ {[%clk 00:01:04]} {[%emt 00:00:36]} Kb8 {[%clk 00:02:35]} {[%emt
00:00:52]} 46. Qf8+ {[%clk 00:00:54]} {[%emt 00:00:41]} Kb7 {[%clk 00:02:42]}
{[%emt 00:00:23]} 47. Qe7+ {[%clk 00:00:48]} {[%emt 00:00:35]} Kc6 {[%clk
00:02:14]} {[%emt 00:00:59]} 48. Qd6+ {[%clk 00:00:56]} {[%emt 00:00:21]} Kb7
{[%clk 00:02:38]} {[%emt 00:00:06]} 1/2-1/2

[Event "Pobeskydi 2026"]
[Site "Frydek-Mistek, Czech Republic"]
[Date "2026.04.04"]
[Round "5.9"]
[White "Zidek, Damian"]
[Black "Boff, Ondrej"]
[Result "0-1"]
[TimeControl "90 min+30s/move"]
[WhiteTitle "-"]
[BlackTitle "-"]
[WhiteFideId "23761652"]
[BlackFideId "23733950"]
[WhiteElo "1962"]
[BlackElo "2101"]

1. d4 {[%clk 01:30:57]} {[%emt 00:00:03]} Nf6 {[%clk 01:30:51]} {[%emt
00:00:08]} 2. Nc3 {[%clk 01:30:42]} {[%emt 00:00:45]} d5 {[%clk 01:29:12]}
{[%emt 00:02:10]} 3. Bg5 {[%clk 01:30:21]} {[%emt 00:00:50]} c6 {[%clk
01:17:19]} {[%emt 00:12:24]} 4. e3 {[%clk 01:26:29]} {[%emt 00:04:22]} h6
{[%clk 01:11:57]} {[%emt 00:05:51]} 5. Bh4 {[%clk 01:26:36]} {[%emt 00:00:23]}
e6 {[%clk 01:08:53]} {[%emt 00:03:35]} 6. Bd3 {[%clk 01:26:40]} {[%emt
00:00:25]} Be7 {[%clk 01:08:58]} {[%emt 00:00:25]} 7. Nge2 {[%emt 00:00:21]}
Nbd7 {[%clk 01:08:26]} {[%emt 00:00:59]} 8. O-O {[%clk 01:27:02]} {[%emt
00:00:21]} O-O {[%clk 01:08:05]} {[%emt 00:00:51]} 9. Nb1 {[%clk 01:25:06]}
{[%emt 00:02:25]} a6 {[%clk 01:04:42]} {[%emt 00:03:53]} 10. c4 {[%clk
01:24:36]} {[%emt 00:00:59]} dxc4 {[%clk 01:03:32]} {[%emt 00:01:42]} 11. Bxc4
{[%clk 01:24:55]} {[%emt 00:00:11]} b5 {[%clk 01:03:29]} {[%emt 00:00:33]} 12.
Bd3 {[%clk 01:23:01]} {[%emt 00:02:23]} c5 {[%clk 00:58:16]} {[%emt 00:05:43]}
13. Nd2 {[%clk 01:11:42]} {[%emt 00:11:47]} Bb7 {[%clk 00:55:29]} {[%emt
00:03:20]} 14. a4 {[%clk 01:10:02]} {[%emt 00:02:09]} c4 {[%clk 00:48:51]}
{[%emt 00:07:08]} 15. Bc2 {[%clk 01:08:57]} {[%emt 00:01:36]} Rc8 {[%clk
00:48:10]} {[%emt 00:01:10]} 16. axb5 {[%clk 01:08:40]} {[%emt 00:00:49]} axb5
{[%clk 00:48:09]} {[%emt 00:00:31]} 17. Bxf6 {[%clk 00:54:19]} {[%emt
00:14:51]} Nxf6 {[%clk 00:47:05]} {[%emt 00:01:33]} 18. Ng3 {[%clk 00:53:38]}
{[%emt 00:01:11]} Qb6 {[%clk 00:43:02]} {[%emt 00:04:32]} 19. Nh5 {[%clk
00:49:41]} {[%emt 00:04:22]} b4 {[%clk 00:36:02]} {[%emt 00:07:36]} 20. Nxf6+
{[%emt 00:11:11]} Bxf6 {[%emt 00:00:10]} 21. Be4 {[%clk 00:37:42]} {[%emt
00:01:07]} Be7 {[%clk 00:24:41]} {[%emt 00:11:51]} 22. Bxb7 {[%clk 00:34:33]}
{[%emt 00:03:40]} Qxb7 {[%clk 00:24:54]} {[%emt 00:00:17]} 23. Qf3 {[%clk
00:34:51]} {[%emt 00:00:12]} Qb6 {[%clk 00:21:00]} {[%emt 00:04:22]} 24. Rab1
{[%clk 00:25:19]} {[%emt 00:10:05]} Rc7 {[%clk 00:18:39]} {[%emt 00:02:49]} 25.
Rfc1 {[%clk 00:24:24]} {[%emt 00:01:27]} Rfc8 {[%clk 00:17:51]} {[%emt
00:01:17]} 26. Qe2 {[%clk 00:23:46]} {[%emt 00:01:08]} c3 {[%clk 00:14:03]}
{[%emt 00:04:18]} 27. bxc3 {[%clk 00:23:54]} {[%emt 00:00:23]} Rxc3 {[%clk
00:14:22]} {[%emt 00:00:09]} 28. Rxc3 {[%clk 00:23:52]} {[%emt 00:00:34]} Rxc3
{[%clk 00:14:34]} {[%emt 00:00:17]} 29. Ne4 {[%clk 00:23:45]} {[%emt 00:00:36]}
Rc8 {[%clk 00:14:40]} {[%emt 00:00:24]} 30. h3 {[%clk 00:15:52]} {[%emt
00:08:23]} b3 {[%clk 00:12:44]} {[%emt 00:02:27]} 31. Qb2 {[%clk 00:12:34]}
{[%emt 00:03:48]} Rc2 {[%clk 00:12:52]} {[%emt 00:00:22]} 32. Qxb3 {[%clk
00:11:46]} {[%emt 00:01:19]} Rc1+ {[%clk 00:13:13]} {[%emt 00:00:08]} 33. Rxc1
{[%clk 00:11:43]} {[%emt 00:00:33]} Qxb3 {[%clk 00:13:38]} {[%emt 00:00:05]} 34.
Nc5 {[%clk 00:11:55]} {[%emt 00:00:17]} Qb2 {[%clk 00:13:08]} {[%emt 00:01:00]}
35. Nd3 {[%clk 00:11:50]} {[%emt 00:00:35]} Qd2 {[%clk 00:12:58]} {[%emt
00:00:39]} 36. Rc8+ {[%clk 00:12:04]} {[%emt 00:00:17]} Kh7 {[%clk 00:13:25]}
{[%emt 00:00:03]} 37. Re8 {[%clk 00:09:06]} {[%emt 00:03:27]} Bd6 {[%clk
00:13:16]} {[%emt 00:00:40]} 38. Ne5 {[%clk 00:08:57]} {[%emt 00:00:40]} Bxe5
{[%clk 00:13:38]} {[%emt 00:00:08]} 39. dxe5 {[%clk 00:09:18]} {[%emt
00:00:09]} Qe1+ {[%clk 00:14:05]} {[%emt 00:00:03]} 40. Kh2 {[%clk 00:09:38]}
{[%emt 00:00:10]} Qxf2 {[%clk 00:14:30]} {[%emt 00:00:05]} 41. Ra8 {[%clk
00:09:03]} {[%emt 00:01:05]} Qxe3 {[%clk 00:14:51]} {[%emt 00:00:09]} 42. Ra5
{[%clk 00:09:15]} {[%emt 00:00:18]} Qf4+ {[%clk 00:15:09]} {[%emt 00:00:11]} 43.
Kh1 {[%clk 00:09:31]} {[%emt 00:00:12]} Qb4 {[%clk 00:15:29]} {[%emt 00:00:12]}
44. Ra7 {[%clk 00:09:49]} {[%emt 00:00:13]} Qe1+ {[%clk 00:15:49]} {[%emt
00:00:10]} 45. Kh2 {[%clk 00:10:13]} {[%emt 00:00:06]} Qxe5+ {[%clk 00:16:10]}
{[%emt 00:00:09]} 0-1